lending/lending_fUSD_20251124
["ID","MTS","AMOUNT","RATE_DAILY","PERIOD"]
[394795420,1763958647257,-151.0,0.00038073,31]
[394795421,1763958647267,-447.771315,0.00038073,30]
[394795422,1763958647277,-216.656296,0.00038073,31]
[394795423,1763958647286,-447.771315,0.00038073,30]
[394795424,1763958647295,-447.771315,0.00038073,30]
[394795425,1763958647305,-151.0,0.00038073,31]
[394795426,1763958647314,-151.413555,0.00038073,31]
[394795427,1763958647324,-160.95447,0.00038073,31]
[394795428,1763958647334,-308.485535,0.00038073,31]
[394795429,1763958647343,-151.806196,0.00038073,31]
[394795430,1763958647353,-308.485535,0.00038073,31]
[394795431,1763958647363,-308.485535,0.00038073,31]
[394795432,1763958647373,-308.485535,0.00038073,31]
[394795433,1763958647382,-267.765502,0.00038073,31]
[394795434,1763958647392,-267.765502,0.00038073,31]
[394795435,1763958647403,-151.0,0.00038073,31]
[394795436,1763958647413,-267.765502,0.00038073,31]
[394795437,1763958647422,-151.0,0.00038073,31]
[394795438,1763958647432,-267.765502,0.00038073,31]
[394795439,1763958647441,-162.494772,0.00038073,31]
[394795440,1763958647451,-162.494772,0.00038073,31]
[394795441,1763958647460,-162.494772,0.00038073,31]
[394795442,1763958647470,-151.0,0.00038073,31]
[394795443,1763958647479,-162.494772,0.00038073,31]
[394795444,1763958647489,-151.0,0.00038073,31]
[394795445,1763958647498,-151.0,0.00038073,31]
[394795446,1763958647507,-151.0,0.00038073,31]
[394795447,1763958647516,-151.0,0.00038073,31]
[394795448,1763958647525,-157.044958,0.00038073,31]
[394795449,1763958647535,-151.0,0.00038073,31]
[394795450,1763958647543,-151.0,0.00038073,31]
[394795451,1763958647552,-248.632951,0.00038073,31]
[394795452,1763958647562,-167.701857,0.00038073,31]
[394795453,1763958647571,-362.452058,0.00038073,31]
[394795454,1763958647580,-175.67551372,0.00038073,31]
[394795455,1763958647594,-186.77654428,0.00038073,31]
[394795456,1763958647603,-362.452058,0.00038073,31]
[394795457,1763958647613,-362.452058,0.00038073,31]
[394795458,1763958647623,-151.0,0.00038073,31]
[394795459,1763958647633,-230.811507,0.00038073,31]
[394795460,1763958647642,-298.751311,0.00038073,31]
[394795461,1763958647652,-230.811507,0.00038073,31]
[394795462,1763958647663,-298.751311,0.00038073,31]
[394795463,1763958647672,-151.0,0.00038073,31]
[394795464,1763958647681,-151.0,0.00038073,31]
[394795465,1763958647691,-230.811507,0.00038073,31]
[394795466,1763958647700,-298.751311,0.00038073,31]
[394795467,1763958647709,-151.0,0.00038073,31]
[394795468,1763958647718,-151.0,0.00038073,31]
[394795469,1763958647728,-230.811507,0.00038073,31]
[394795470,1763958647737,-298.751311,0.00038073,31]
[394795471,1763958647747,-219.5971,0.00038073,31]
[394795472,1763958647756,-151.0,0.00038073,31]
[394795473,1763958647766,-151.0,0.00038073,31]
[394795474,1763958647775,-376.064495,0.00038073,31]
[394795475,1763958647784,-151.0,0.00038098,31]
[394795476,1763958647794,-151.0,0.00038098,31]
[394795477,1763958647803,-166.646435,0.00038098,31]
[394795478,1763958647812,-153.642282,0.00038098,31]
[394795479,1763958647822,-151.0,0.00038098,31]
[394795480,1763958647831,-151.0,0.00038098,31]
[394795481,1763958647840,-151.0,0.00038098,31]
[394795482,1763958647849,-154.710698,0.00038098,31]
[394795483,1763958647859,-235.139991,0.00038098,10]
[394795484,1763958647869,-4787.46389884,0.00038108,2]
[394795485,1763958647881,-151.0,0.00038108,31]
[394795486,1763958647891,-151.0,0.00038108,31]
[394795487,1763958647901,-151.0,0.00038108,31]
[394795488,1763958647912,-151.0,0.00038108,30]
[394795489,1763958647933,-151.0,0.00038108,31]
[394795490,1763958647942,-209.16011365,0.00038156,2]
[394795491,1763958647952,-500.0,0.00038156,2]
[394795492,1763958647964,-200.0,0.00038156,2]
[394795493,1763958647973,-150.0,0.00038181,4]
[394795494,1763958647982,-150.0,0.00038181,4]
[394795495,1763958647993,-200.0,0.00038181,4]
[394795496,1763958648003,-150.0,0.00038181,4]
[394795497,1763958648013,-500.0,0.00038181,4]
[394795498,1763958648023,-150.0,0.00038181,4]
[394795499,1763958648033,-166.72,0.00038183,2]
[394795500,1763958648042,-150.0,0.0003819,15]
[394795501,1763958648053,-842.05997413,0.00038193,2]
[394795502,1763958648062,-367.78080709,0.00038193,15]
[394795503,1763958648071,-150.0,0.000382,2]
[394795504,1763958648081,-843.52,0.00038207,2]
[394795505,1763958648091,-10000.0,0.00038256,2]
[394795506,1763958648100,-155.76565566,0.00038256,2]
[394795507,1763958648109,-153.066656,0.00038256,31]
[394795508,1763958648119,-153.941464,0.00038256,31]
[394795509,1763958648128,-151.0,0.00038256,30]
[394795510,1763958648138,-157.10363,0.00038256,31]
[394795511,1763958648147,-151.0,0.00038256,31]
[394795512,1763958648156,-151.0,0.00038256,31]
[394795513,1763958648166,-151.0,0.00038256,31]
[394795514,1763958648175,-151.0,0.00038256,31]
[394795515,1763958648184,-152.018168,0.00038256,31]
[394795516,1763958648193,-154.271817,0.00038256,7]
[394795517,1763958648202,-151.0,0.00038256,31]
[394795518,1763958648212,-151.0,0.00038256,31]
[394795519,1763958648221,-151.0,0.00038256,31]
[394795520,1763958648230,-151.0,0.00038256,31]
[394795521,1763958648240,-151.0,0.00038256,31]
[394795522,1763958648249,-155.686791,0.00038256,31]
[394795523,1763958648259,-151.0,0.00038256,31]
[394795524,1763958648269,-151.0,0.00038256,31]
[394795525,1763958648278,-153.35353,0.00038256,31]
[394795526,1763958648287,-241.146188,0.00038256,31]
[394795527,1763958648297,-151.0,0.00038256,31]
[394795528,1763958648306,-151.0,0.00038256,31]
[394795529,1763958648316,-163.18646,0.00038256,31]
[394795530,1763958648325,-151.0,0.00038256,31]
[394795531,1763958648334,-151.0,0.00038256,31]
[394795532,1763958648344,-151.0,0.00038256,31]
[394795533,1763958648353,-151.0,0.00038256,31]
[394795534,1763958648362,-151.0,0.00038256,31]
[394795535,1763958648371,-151.0,0.00038256,31]
[394795536,1763958648381,-151.0,0.00038256,31]
[394795537,1763958648390,-151.0,0.00038256,31]
[394795538,1763958648399,-151.0,0.00038256,31]
[394795539,1763958648408,-151.0,0.00038256,31]
[394795540,1763958648417,-151.0,0.00038256,31]
[394795541,1763958648426,-170.765261,0.00038256,31]
[394795542,1763958648435,-151.0,0.00038256,31]
[394795543,1763958648444,-151.0,0.00038256,31]
[394795544,1763958648453,-151.0,0.00038256,31]
[394795545,1763958648462,-241.295382,0.00038256,31]
[394795546,1763958648472,-151.0,0.00038256,31]
[394795547,1763958648481,-151.476832,0.00038256,31]
[394795548,1763958648490,-495.808335,0.00038256,31]
[394795549,1763958648500,-495.808335,0.00038256,31]
[394795550,1763958648510,-495.808335,0.00038256,31]
[394795551,1763958648519,-495.808335,0.00038256,31]
[394795552,1763958648528,-172.195278,0.00038256,31]
[394795553,1763958648538,-162.588307,0.00038256,31]
[394795554,1763958648547,-818.268855,0.00038256,31]
[394795555,1763958648557,-818.268855,0.00038256,31]
[394795556,1763958648566,-818.268855,0.00038256,31]
[394795557,1763958648575,-818.268855,0.00038256,31]
[394795558,1763958648584,-151.0,0.00038256,31]
[394795559,1763958648594,-151.0,0.00038256,31]
[394795560,1763958648604,-151.0,0.00038256,31]
[394795561,1763958648613,-151.0,0.00038256,31]
[394795562,1763958648622,-159.563348,0.00038256,31]
[394795563,1763958648632,-320.636121,0.00038256,31]
[394795564,1763958648641,-320.636121,0.00038256,31]
[394795565,1763958648650,-320.636121,0.00038256,31]
[394795566,1763958648659,-320.636121,0.00038256,31]
[394795567,1763958648668,-151.0,0.00038256,31]
[394795568,1763958648677,-166.409161,0.00038256,15]
[394795569,1763958648686,-166.409161,0.00038256,15]
[394795570,1763958648696,-166.409161,0.00038256,15]
[394795571,1763958648705,-166.409161,0.00038256,15]
[394795572,1763958648714,-151.0,0.00038256,31]
[394795573,1763958648723,-447.771315,0.00038256,30]
[394795574,1763958648732,-151.0,0.00038256,31]
[394795575,1763958648742,-447.771315,0.00038256,30]
[394795576,1763958648750,-447.771315,0.00038256,30]
[394795577,1763958648759,-447.771315,0.00038256,30]
[394795578,1763958648768,-176.066511,0.00038256,31]
[394795579,1763958648777,-308.485535,0.00038256,31]
[394795580,1763958648786,-308.485535,0.00038256,31]
[394795581,1763958648795,-939.17630606,0.00038256,13]
[394795582,1763958648804,-308.485535,0.00038256,31]
[394795583,1763958648813,-308.485535,0.00038256,31]
[394795584,1763958648822,-267.765502,0.00038256,31]
[394795585,1763958648831,-267.765502,0.00038256,31]
[394795586,1763958648840,-151.0,0.00038256,31]
[394795587,1763958648849,-267.765502,0.00038256,31]
[394795588,1763958648858,-151.0,0.00038256,31]
[394795589,1763958648867,-267.765502,0.00038256,31]
[394795590,1763958648877,-162.494772,0.00038256,31]
[394795591,1763958648891,-162.494772,0.00038256,31]
[394795592,1763958648900,-162.494772,0.00038256,31]
[394795593,1763958648910,-151.0,0.00038256,31]
[394795594,1763958648920,-162.494772,0.00038256,31]
[394795595,1763958648930,-151.0,0.00038256,31]
[394795596,1763958648939,-151.0,0.00038256,31]
[394795597,1763958648948,-151.0,0.00038256,31]
[394795598,1763958648958,-151.0,0.00038256,31]
[394795599,1763958648967,-151.0,0.00038256,31]
[394795600,1763958648976,-151.0,0.00038256,31]
[394795601,1763958648985,-362.452058,0.00038256,31]
[394795602,1763958648994,-362.452058,0.00038256,31]
[394795603,1763958649003,-362.452058,0.00038256,31]
[394795604,1763958649013,-362.452058,0.00038256,31]
[394795605,1763958649023,-151.0,0.00038256,31]
[394795606,1763958649032,-230.811507,0.00038256,31]
[394795607,1763958649042,-298.751311,0.00038256,31]
[394795608,1763958649051,-230.811507,0.00038256,31]
[394795609,1763958649062,-298.751311,0.00038256,31]
[394795610,1763958649071,-151.0,0.00038256,31]
[394795611,1763958649080,-230.811507,0.00038256,31]
[394795612,1763958649090,-298.751311,0.00038256,31]
[394795613,1763958649099,-195.364002,0.00038256,31]
[394795614,1763958649108,-151.0,0.00038256,31]
[394795615,1763958649118,-230.811507,0.00038256,31]
[394795616,1763958649127,-298.751311,0.00038256,31]
[394795617,1763958649136,-151.0,0.00038256,31]
[394795618,1763958649146,-151.0,0.00038256,31]
[394795619,1763958649155,-376.064495,0.00038256,31]
[394795620,1763958649165,-200.0,0.00038275,10]
[394795621,1763958649175,-232.17223861,0.0003829,2]
[394795622,1763958649184,-150.0,0.00038318,4]
[394795623,1763958649194,-201.82335502,0.00038318,4]
[394795624,1763958649205,-266.69577864,0.00038318,4]
[394795625,1763958649215,-500.0,0.00038318,4]
[394795626,1763958649224,-156.0,0.00038318,4]
[394795627,1763958649234,-200.0,0.00038327,15]
[394795628,1763958649243,-1109.5,0.00038327,14]
[394795629,1763958649252,-500.0,0.00038328,120]
[394795630,1763958649262,-7760.02,0.00038328,120]
[394795631,1763958649272,-5533.0,0.00038345,5]
[394795632,1763958649282,-151.0,0.00038346,31]
[394795633,1763958649451,-154.491443,0.00038346,31]
[394795634,1763958649467,-151.0,0.00038346,31]
[394795635,1763958649477,-154.967235,0.00038346,31]
[394795636,1763958649487,-244.076514,0.00038346,31]
[394795637,1763958649496,-151.0,0.00038346,31]
[394795638,1763958649506,-151.0,0.00038346,31]
[394795639,1763958649516,-157.107883,0.00038346,31]
[394795640,1763958649525,-151.0,0.00038346,31]
[394795641,1763958649534,-151.0,0.00038346,31]
[394795642,1763958649544,-151.0,0.00038346,31]
[394795643,1763958649554,-152.777137,0.00038346,31]
[394795644,1763958649563,-166.409161,0.00038346,15]
[394795645,1763958649572,-166.409161,0.00038346,15]
[394795646,1763958649583,-166.409161,0.00038346,15]
[394795647,1763958649592,-166.409161,0.00038346,15]
[394795648,1763958649602,-151.0,0.00038346,31]
[394795649,1763958649611,-447.771315,0.00038346,30]
[394795650,1763958649620,-151.0,0.00038346,31]
[394795651,1763958649630,-447.771315,0.00038346,30]
[394795652,1763958649640,-447.771315,0.00038346,30]
[394795653,1763958649649,-447.771315,0.00038346,30]
[394795654,1763958649659,-308.485535,0.00038346,31]
[394795655,1763958649669,-308.485535,0.00038346,31]
[394795656,1763958649678,-308.485535,0.00038346,31]
[394795657,1763958649688,-308.485535,0.00038346,31]
[394795658,1763958649697,-500.0,0.00038355,2]
[394795659,1763958649706,-500.0,0.00038355,2]
[394795660,1763958649715,-755.13099257,0.00038356,14]
[394795661,1763958649726,-151.361882,0.00038356,8]
[394795662,1763958649736,-502.278428,0.00038356,8]
[394795663,1763958649745,-407.704128,0.00038356,8]
[394795664,1763958649755,-501.26063955,0.00038356,8]
[394795665,1763958649765,-506.62920117,0.00038356,8]
[394795666,1763958649775,-501.61173428,0.00038356,8]
[394795667,1763958649784,-501.32558539,0.00038356,8]
[394795668,1763958649794,-500.0,0.00038356,8]
[394795669,1763958649803,-503.57074629,0.00038356,8]
[394795670,1763958649812,-501.8806505,0.00038356,8]
[394795671,1763958649822,-500.0,0.00038356,8]
[394795672,1763958649831,-500.0,0.00038356,8]
[394795673,1763958649840,-500.0,0.00038356,8]
[394795674,1763958649849,-501.27125163,0.00038356,2]
[394795675,1763958649859,-557.07820574,0.00038356,8]
[394795676,1763958649868,-500.0,0.00038356,8]
[394795677,1763958649878,-502.44639571,0.00038356,8]
[394795678,1763958649890,-406.38653388,0.00038356,8]
[394795679,1763958649899,-287.38081911,0.00038356,8]
[394795680,1763958649909,-500.0,0.00038356,8]
[394795681,1763958649919,-510.02897918,0.00038356,8]
[394795682,1763958649930,-306.81402429,0.00038356,8]
[394795683,1763958649940,-508.15356246,0.00038356,8]
[394795684,1763958649950,-500.0,0.00038356,8]
[394795685,1763958649960,-508.92432426,0.00038356,8]
[394795686,1763958649969,-507.3050012,0.00038356,8]
[394795687,1763958649978,-506.00355423,0.00038356,8]
[394795688,1763958649987,-516.47054134,0.00038356,8]
[394795689,1763958649997,-503.39227552,0.00038356,8]
[394795690,1763958650006,-504.60686033,0.00038356,8]
[394795691,1763958650015,-595.19982297,0.00038356,8]
[394795692,1763958650025,-572.29,0.00038356,8]
[394795693,1763958650034,-515.14702148,0.00038356,8]
[394795694,1763958650043,-500.0,0.00038356,8]
[394795695,1763958650052,-537.2996708,0.00038356,8]
[394795696,1763958650062,-351.93826604,0.00038356,8]
[394795697,1763958650071,-503.49337612,0.00038356,8]
[394795698,1763958650081,-505.41991324,0.00038356,8]
[394795699,1763958650090,-503.96640837,0.00038356,8]
[394795700,1763958650099,-510.17256125,0.00038356,8]
[394795701,1763958650108,-508.15383554,0.00038356,8]
[394795702,1763958650118,-585.38005233,0.00038356,8]
[394795703,1763958650127,-500.0,0.00038356,8]
[394795704,1763958650136,-504.1171734,0.00038356,8]
[394795705,1763958650145,-632.34742347,0.00038356,8]
[394795706,1763958650154,-507.68766059,0.00038356,8]
[394795707,1763958650163,-200.13720628,0.00038356,8]
[394795708,1763958650173,-500.0,0.00038356,8]
[394795709,1763958650182,-503.60175311,0.00038356,8]
[394795710,1763958650192,-584.72650629,0.00038356,8]
[394795711,1763958650201,-585.02952803,0.00038356,8]
[394795712,1763958650210,-510.35094279,0.00038356,8]
[394795713,1763958650220,-503.54274316,0.00038356,8]
[394795714,1763958650229,-626.15119328,0.00038356,8]
[394795715,1763958650239,-503.55653056,0.00038356,8]
[394795716,1763958650248,-505.42472272,0.00038356,8]
[394795717,1763958650257,-486.37727591,0.00038356,8]
[394795718,1763958650267,-500.0,0.00038356,8]
[394795719,1763958650276,-502.2119137,0.00038356,8]
[394795720,1763958650285,-503.53449016,0.00038356,8]
[394795721,1763958650295,-519.38714482,0.00038356,8]
[394795722,1763958650304,-514.48286879,0.00038356,8]
[394795723,1763958650313,-510.05349401,0.00038356,8]
[394795724,1763958650323,-504.27213124,0.00038356,8]
[394795725,1763958650332,-499.86111394,0.00038356,8]
[394795726,1763958650341,-502.42941814,0.00038356,8]
[394795727,1763958650351,-523.24425475,0.00038356,8]
[394795728,1763958650360,-506.14385871,0.00038356,8]
[394795729,1763958650369,-503.54091935,0.00038356,8]
[394795730,1763958650379,-500.0,0.00038356,8]
[394795731,1763958650388,-500.0,0.00038356,8]
[394795732,1763958650398,-500.0,0.00038356,8]
[394795733,1763958650407,-500.0,0.00038356,8]
[394795734,1763958650416,-506.7773664,0.00038356,8]
[394795735,1763958650426,-505.7285083,0.00038356,8]
[394795736,1763958650435,-512.33046071,0.00038356,8]
[394795737,1763958650445,-500.0,0.00038356,8]
[394795738,1763958650454,-509.9896449,0.00038356,8]
[394795739,1763958650464,-514.79160526,0.00038356,8]
[394795740,1763958650473,-508.97797589,0.00038356,8]
[394795741,1763958650482,-504.47936103,0.00038356,8]
[394795742,1763958650492,-500.0,0.00038356,8]
[394795743,1763958650501,-506.84949858,0.00038356,8]
[394795744,1763958650511,-515.375091,0.00038356,8]
[394795745,1763958650521,-505.5739128,0.00038356,8]
[394795746,1763958650530,-504.43321236,0.00038356,8]
[394795747,1763958650540,-500.0,0.00038356,8]
[394795748,1763958650549,-503.9750029,0.00038356,8]
[394795749,1763958650558,-502.88820896,0.00038356,8]
[394795750,1763958650567,-500.0,0.00038356,8]
[394795751,1763958650577,-463.56880867,0.00038356,8]
[394795752,1763958650586,-500.0,0.00038356,8]
[394795753,1763958650595,-1010.96011686,0.00038356,8]
[394795754,1763958650605,-503.9058561,0.00038356,8]
[394795755,1763958650614,-504.32588853,0.00038356,8]
[394795756,1763958650624,-502.76431284,0.00038356,8]
[394795757,1763958650634,-519.0662392,0.00038356,8]
[394795758,1763958650643,-503.69325748,0.00038356,8]
[394795759,1763958650653,-508.4848977,0.00038356,8]
[394795760,1763958650663,-522.79067492,0.00038356,8]
[394795761,1763958650672,-500.0,0.00038356,8]
[394795762,1763958650681,-500.0,0.00038356,8]
[394795763,1763958650690,-504.01331843,0.00038356,8]
[394795764,1763958650700,-505.08273908,0.00038356,8]
[394795765,1763958650709,-508.98556597,0.00038356,8]
[394795766,1763958650718,-528.09379122,0.00038356,8]
[394795767,1763958650728,-502.04555649,0.00038356,8]
[394795768,1763958650738,-582.56556074,0.00038356,8]
[394795769,1763958650747,-502.96336166,0.00038356,8]
[394795770,1763958650757,-506.38751332,0.00038356,8]
[394795771,1763958650766,-500.0,0.00038356,8]
[394795772,1763958650776,-518.30323776,0.00038356,8]
[394795773,1763958650785,-500.0,0.00038356,8]
[394795774,1763958650794,-500.0,0.00038356,8]
[394795775,1763958650803,-500.0,0.00038356,8]
[394795776,1763958650813,-500.0,0.00038356,8]
[394795777,1763958650823,-506.01168338,0.00038356,8]
[394795778,1763958650832,-500.0,0.00038356,8]
[394795779,1763958650841,-500.0,0.00038356,8]
[394795780,1763958650851,-500.0,0.00038356,8]
[394795781,1763958650860,-500.0,0.00038356,8]
[394795782,1763958650869,-500.0,0.00038356,8]
[394795783,1763958650881,-506.75582342,0.00038356,8]
[394795784,1763958650892,-500.0,0.00038356,8]
[394795785,1763958650901,-503.25875201,0.00038356,8]
[394795786,1763958650911,-191.93493464,0.00038356,8]
[394795787,1763958650922,-500.0,0.00038356,8]
[394795788,1763958650931,-151.0,0.00038356,30]
[394795789,1763958650940,-153.021717,0.00038356,30]
[394795790,1763958650949,-500.0,0.00038356,8]
[394795791,1763958650960,-500.0,0.00038356,8]
[394795792,1763958650970,-500.0,0.00038356,8]
[394795793,1763958650980,-838.0,0.00038356,8]
[394795794,1763958650989,-500.0,0.00038356,8]
[394795795,1763958650998,-503.53507672,0.00038356,8]
[394795796,1763958651008,-505.81014751,0.00038356,8]
[394795797,1763958651017,-500.0,0.00038356,8]
[394795798,1763958651026,-500.0,0.00038356,8]
[394795799,1763958651035,-500.0,0.00038356,8]
[394795800,1763958651044,-500.0,0.00038356,8]
[394795801,1763958651054,-502.77394047,0.00038356,8]
[394795802,1763958651062,-592.69823382,0.00038356,8]
[394795803,1763958651071,-506.84525032,0.00038356,8]
[394795804,1763958651080,-590.1756813,0.00038356,8]
[394795805,1763958651090,-500.0,0.00038356,8]
[394795806,1763958651099,-500.0,0.00038356,8]
[394795807,1763958651108,-500.0,0.00038356,8]
[394795808,1763958651117,-502.48825838,0.00038356,8]
[394795809,1763958651126,-500.0,0.00038356,8]
[394795810,1763958651135,-502.76468932,0.00038356,8]
[394795811,1763958651144,-500.0,0.00038356,8]
[394795812,1763958651154,-500.0,0.00038356,8]
[394795813,1763958651164,-500.0,0.00038356,8]
[394795814,1763958651173,-362.93418085,0.00038356,8]
[394795815,1763958651183,-502.39658189,0.00038356,8]
[394795816,1763958651191,-500.0,0.00038356,8]
[394795817,1763958651201,-342.54711707,0.00038356,8]
[394795818,1763958651210,-500.0,0.00038356,8]
[394795819,1763958651219,-500.0,0.00038356,8]
[394795820,1763958651229,-500.0,0.00038356,8]
[394795821,1763958651238,-500.0,0.00038356,8]
[394795822,1763958651247,-500.0,0.00038356,8]
[394795823,1763958651257,-503.36582466,0.00038356,8]
[394795824,1763958651267,-531.30608747,0.00038356,8]
[394795825,1763958651276,-504.066647,0.00038356,8]
[394795826,1763958651286,-500.0,0.00038356,8]
[394795827,1763958651295,-500.0,0.00038356,8]
[394795828,1763958651304,-500.0,0.00038356,8]
[394795829,1763958651314,-500.0,0.00038356,8]
[394795830,1763958651324,-500.0,0.00038356,8]
[394795831,1763958651333,-505.26359644,0.00038356,8]
[394795832,1763958651343,-505.49823836,0.00038356,8]
[394795833,1763958651352,-151.0,0.00038356,31]
[394795834,1763958651362,-151.0,0.00038356,31]
[394795835,1763958651371,-151.0,0.00038356,31]
[394795836,1763958651381,-156.064797,0.00038356,31]
[394795837,1763958651390,-151.0,0.00038356,31]
[394795838,1763958651399,-160.136633,0.00038356,31]
[394795839,1763958651409,-539.54059314,0.00038356,8]
[394795840,1763958651419,-500.0,0.00038356,8]
[394795841,1763958651428,-503.27981854,0.00038356,8]
[394795842,1763958651437,-500.0,0.00038356,8]
[394795843,1763958651447,-500.0,0.00038356,8]
[394795844,1763958651456,-527.7078337,0.00038356,8]
[394795845,1763958651465,-500.0,0.00038356,8]
[394795846,1763958651474,-500.0,0.00038356,8]
[394795847,1763958651483,-500.0,0.00038356,8]
[394795848,1763958651493,-500.0,0.00038356,8]
[394795849,1763958651502,-500.0,0.00038356,8]
[394795850,1763958651512,-500.0,0.00038356,8]
[394795851,1763958651521,-500.0,0.00038356,8]
[394795852,1763958651530,-500.0,0.00038356,8]
[394795853,1763958651540,-534.11375138,0.00038356,8]
[394795854,1763958651549,-500.0,0.00038356,8]
[394795855,1763958651559,-500.0,0.00038356,8]
[394795856,1763958651568,-502.13511651,0.00038356,8]
[394795857,1763958651577,-500.0,0.00038356,8]
[394795858,1763958651586,-500.0,0.00038356,8]
[394795859,1763958651595,-500.0,0.00038356,8]
[394795860,1763958651604,-500.0,0.00038356,8]
[394795861,1763958651614,-500.0,0.00038356,8]
[394795862,1763958651623,-151.0,0.00038356,31]
[394795863,1763958651633,-151.000012,0.00038356,31]
[394795864,1763958651642,-500.04759343,0.00038356,8]
[394795865,1763958651651,-505.46149465,0.00038356,8]
[394795866,1763958651661,-500.0,0.00038356,8]
[394795867,1763958651671,-500.0,0.00038356,8]
[394795868,1763958651681,-500.0,0.00038356,8]
[394795869,1763958651691,-144.40345205,0.00038356,8]
[394795870,1763958651895,-355.59654795,0.00038356,8]
[394795871,1763958651904,-503.2101922,0.00038356,8]
[394795872,1763958651914,-157.349243,0.00038356,31]
[394795873,1763958651925,-139.36376685,0.00038356,8]
[394795874,1763958651937,-390.71069744,0.00038356,8]
[394795875,1763958651946,-509.84098825,0.00038356,8]
[394795876,1763958651956,-507.48291135,0.00038356,8]
[394795877,1763958651965,-26.58491134,0.00038356,8]
[394795879,1763959142365,228.2,0.00013699,2]
[394795880,1763959165567,1000.0,0.0001832,2]
[394795881,1763959258728,549.20150906,0.00015,6]
[394795882,1763959258754,584.79849094,0.00015,6]
[394796090,1763959831630,-228.2,0.00020187,2]
[394796091,1763959831640,-228.2,0.00026676,2]
[394796092,1763959831649,-255.77874627,0.00028974,119]
[394796093,1763959831661,-44.22125373,0.00028974,119]
[394796094,1763959831673,-300.0,0.00028974,119]
[394796095,1763959831682,-289.27834919,0.00028974,119]
[394796096,1763959831738,-10.72165081,0.00028974,119]
[394796097,1763959831748,-300.0,0.00028974,119]
[394796098,1763959831757,-300.0,0.00028974,119]
[394796099,1763959831767,-228.2,0.00033165,2]
[394796100,1763959831775,-185.78,0.00034563,2]
[394796101,1763959831784,-168.1246529,0.00034915,7]
[394796102,1763959831793,-150.0,0.00034915,7]
[394796103,1763959831803,-162.95104737,0.00034915,7]
[394796104,1763959831812,-2162.99,0.00036511,2]
[394796105,1763959831821,-962.09,0.00036769,120]
[394796106,1763959831836,-5000.0,0.000368,2]
[394796107,1763959831845,-506.11,0.000368,2]
[394796108,1763959831854,-161.94,0.0003688,30]
[394796109,1763959831863,-360.9566,0.00036888,7]
[394796110,1763959831872,-478.61,0.00036941,2]
[394796111,1763959831881,-166.57029206,0.00037007,2]
[394796112,1763959831890,-550.91,0.00037078,2]
[394796113,1763959831899,-207.60091557,0.00037453,12]
[394796115,1763959831908,-352.03560129,0.00037453,15]
[394796117,1763959831917,-3110.44729013,0.00037497,2]
[394796119,1763959831926,-155.67048228,0.0003754,2]
[394796120,1763959831937,-252.51979189,0.0003754,2]
[394796121,1763959837618,-1037.80972583,0.0003754,2]
[394796122,1763959837627,-168.7012292,0.0003754,48]
[394796123,1763959837636,-908.423,0.0003754,48]
[394796124,1763959837645,-226.520829,0.00037552,15]
[394796125,1763959837655,-500.0,0.00037552,15]
[394796126,1763959837664,-282.9343289,0.00037552,15]
[394796127,1763959837673,-552.52733653,0.00037552,15]
[394796128,1763959837682,-634.63522771,0.00037552,15]
[394796129,1763959837691,-500.0,0.00037552,15]
[394796130,1763959837700,-412.29331656,0.00037552,2]